Cogmind - Beta 14 @@@ ROGUE MODE // 2024.09.20 @ 22:54:00 Player: ZarZap Result: Destroyed by D-53 Grenadier with Mini Grenade Launcher Performance ------------- Evolutions (0) 0 Regions Visited (2) 400 Robots Destroyed (19) 95 Value Destroyed (253) 253 Prototype IDs (0) 0 Alien Tech Used (0) 0 Bonus (-5) -5 TOTAL SCORE: 743 Bonus ------- Follower Combat Kills 7 Friendly Fire -12 Cogmind --------- Core Integrity 0/250 Matter 300/300 Energy 96/100 System Corruption 0% Temperature Warm (179) Movement Rolling (140) Ox4 Location -10/Mines Parts ------- > --- POWER (1) -------- (None) > --- PROPULSION (2) --- Wheel Wheel > --- UTILITY (2) ------ Huge Storage Unit Terrain Scanner > --- WEAPON (2) ------- Spread Laser Spread Laser > --- INVENTORY (25) --- Light Ion Engine Light Ion Engine Wheel Wheel Compact Wheel Small Laser Small Laser Particle Gun Rocket Launcher Peak State ------------ > --- POWER ------------ Light Ion Engine > --- PROPULSION ------- Wheel Wheel > --- UTILITY ---------- Huge Storage Unit Terrain Scanner > --- WEAPON ----------- Spread Laser Spread Laser > --- INVENTORY -------- Light Ion Engine Light Ion Engine Wheel Wheel Compact Wheel Small Laser Small Laser Particle Gun Rocket Launcher [Rating: 10] Favorites ----------- Power Light Ion Engine Engine Light Ion Engine Propulsion Wheel Leg Aluminum Leg Wheel Wheel Utility Huge Storage Unit Device Terrain Scanner Storage Huge Storage Unit Weapon Spread Laser Energy Gun Spread Laser Ballistic Gun Light Assault Rifle Build | -11 -10 -10 ------- Run | Yrd Mat Min Slots Evolved . | . . . Power . | . . . Propulsion . | . . . Utility . | . . . Weapon . | . . . Parts Attached 18 | . 14 4 Power 4 | . 4 . Engine 4 | . 4 . Core . | . . . Reactor . | . . . Propulsion 6 | . 3 3 Treads . | . . . Leg . | . . . Wheel 6 | . 3 3 Hover . | . . . Flight . | . . . Utility 2 | . 1 1 Device 1 | . . 1 Storage 1 | . 1 . Processor . | . . . Hackware . | . . . Protection . | . . . Artifact . | . . . Weapon 6 | . 6 . Energy Gun 5 | . 5 . Energy Cannon . | . . . Ballistic Gun 1 | . 1 . Ballistic Cannon . | . . . Launcher . | . . . Special Weapon . | . . . Impact Weapon . | . . . Slashing Weapon . | . . . Piercing Weapon . | . . . Special Melee Weapon . | . . . Unidentified Prototypes . | . . . Parts Lost 4 | . 3 1 Power 2 | . 1 1 Propulsion . | . . . Utility . | . . . Weapon 2 | . 2 . Highest Loss Streak 1 | . 1 1 To Critical Strikes . | . . . Average Slot Usage (%) 88 | . 83 93 Engine 12 | . 12 13 Leg 7 | . 13 . Wheel 20 | . 14 28 Device 3 | . . 8 Storage 14 | . 14 14 Energy Gun 23 | . 19 28 Ballistic Gun 4 | . 8 . Peak Build Rating 10 | 6 9 10 Average Rating 8 | 6 6 9 On Entrance 7 | 6 6 9 Naked Turns . | . . . Heaviest Build 90 | 11 89 90 Greatest Support 32 | 20 32 26 Greatest Overweight (x) 4 | . 3 4 Average Overweight (x) 1 | . . 3 Largest Inventory Capacity 25 | 8 25 25 Average Capacity 16 | 8 10 25 Most Carried 12 | 6 9 12 Average Carried 7 | 5 5 9 Final Capacity 25 | 8 25 25 Final Carried 9 | 4 9 9 Class Distribution -------------------- 100% | Mutant Dominant Class ---------------- Mutant | -10/Materials Mutant | -10/Mines Resources | -11 -10 -10 ----------- Run | Yrd Mat Min Matter Collected 408 | 200 153 55 Remotely . | . . . Salvage Created 528 | . 455 73 Parts 46 | . 37 9 Haulers Intercepted . | . . . Recyclers Shooed 4 | . 4 . Parts Field Recycled . | . . . Retrieved Matter . | . . . Parts Self-Destructed . | . . . Prevented . | . . . Kills | -11 -10 -10 ------- Run | Yrd Mat Min Combat Hostiles Destroyed 11 | . 8 3 Guns 11 | . 8 3 Classes Destroyed 9 | . 7 2 Worker 1 | . 1 . Builder 2 | . 2 . Tunneler 1 | . . 1 Recycler 3 | . 2 1 Operator 1 | . 1 . Watcher 1 | . 1 . Swarmer 7 | . 5 2 Grunt 3 | . 3 . Assembled 1 | . . 1 Best Kill Streak 4 | . 4 3 Combat Bots Only 3 | . 3 2 Max Kills in Single Turn 2 | . 2 1 Gunslinging . | . . . Exploded . | . . . Melee . | . . . Uniques/NPCs Destroyed . | . . . Combat | -11 -10 -10 -------- Run | Yrd Mat Min Hostile Shots Fired 102 | . 72 30 Missed 21 | . 13 8 Damage Taken 1069 | . 654 415 Core 271 | . 89 182 Absorbed by Shields . | . . . Core Remaining (%) 100 | 100 . . Volleys Fired 55 | . 42 13 Largest 2 | . 2 2 Hottest 130 | . 130 130 Shots Fired 109 | . 83 26 Gun 109 | . 83 26 Cannon . | . . . Launcher . | . . . Special . | . . . Kinetic 36 | . 36 . Thermal 59 | . 33 26 Explosive . | . . . Electromagnetic 14 | . 14 . Robot Hit Streak 12 | . 8 12 Robot Miss Streak 10 | . 4 10 Penetration Max . | . . . Secondary Targets 4 | . 4 . Max Gunslinging Chain 1 | . 1 . Shots Hit Robots 76 | . 54 22 Core Hits 59 | . 31 28 Critical Kills . | . . . Critical Parts Destroyed . | . . . Critical Strikes . | . . . Melee Attacks . | . . . Impact . | . . . Slashing . | . . . Piercing . | . . . Sneak Attacks . | . . . Combat Hostiles . | . . . Follow-up Attacks . | . . . Damage Inflicted 914 | . 662 252 Guns 850 | . 598 252 Cannons . | . . . Explosions 64 | . 64 . Melee . | . . . Ramming . | . . . Kinetic 208 | . 208 . Thermal 608 | . 356 252 Explosive . | . . . Electromagnetic 98 | . 98 . Impact . | . . . Slashing . | . . . Piercing . | . . . Highest Corruption . | . . . Average Corruption . | . . . Corruption Purged . | . . . Corruption Blocked . | . . . Overload Shots . | . . . Overflow Damage 15 | . 15 . Projectiles . | . . . Explosions 15 | . 15 . Melee . | . . . Knockbacks . | . . . Impact . | . . . Kinetic . | . . . Secondary . | . . . Self-Inflicted Damage 13 | . 13 . Shots 1 | . 1 . Rammed . | . . . Targets Rammed . | . . . Kicked . | . . . Crushed . | . . . Highest Temperature 276 | . 252 276 Average Temperature 83 | . 72 107 Received Heat Transfer 237 | . 237 . Effects 3 | . . 3 Energy Bleed 1 | . . 1 Interference 2 | . . 2 Siege Activations . | . . . Robots Corrupted . | . . . Combat Hostiles . | . . . Parts Fried . | . . . Impact Corruptions . | . . . Robots Melted . | . . . Combat Hostiles . | . . . Parts Melted 2 | . 1 1 Heat Transferred 1023 | . 698 325 Parts Sabotaged . | . . . Parts Stolen . | . . . Parts Stripped . | . . . Power Chain Reactions 1 | . 1 . Alert | -11 -10 -10 ------- Run | Yrd Mat Min Peak Influence 273 | . 273 117 Initial 28 | . . 28 Average 120 | . 146 90 Maximum Alert Level 1 | . 1 . Low Security (%) 82 | 100 68 100 Level 1 17 | . 31 . Level 2 . | . . . Level 3 . | . . . Level 4 . | . . . Level 5 . | . . . High Security . | . . . Max Security . | . . . Squads Dispatched 1 | . 1 . Investigation 1 | . 1 . Extermination . | . . . Reinforcement . | . . . Assault . | . . . Garrison . | . . . Intercept . | . . . Searches Triggered . | . . . Construction Impeded . | . . . Haulers Reinforced . | . . . Active Scanning Responses . | . . . Cargo Convoy Interrupts . | . . . Stealth | -11 -10 -10 --------- Run | Yrd Mat Min Distress Signals 1 | . 1 . Communications Jammed . | . . . Distress Signals . | . . . Times Spotted 36 | . 18 18 Peak Tracking Total 17 | . 5 17 Tactical Retreats 2 | . 1 1 Traps | -11 -10 -10 ------- Run | Yrd Mat Min Traps Triggered . | . . . Indirectly . | . . . Trap Hack Attempts . | . . . Triggered . | . . . Disarmed . | . . . Reprogrammed . | . . . Reused . | . . . Traps Extracted . | . . . Installed . | . . . Triggered . | . . . Machines | -11 -10 -10 ---------- Run | Yrd Mat Min Machines Disabled . | . . . Max in Single Turn . | . . . Machines Repaired . | . . . Machines Dismantled . | . . . Machines Sabotaged . | . . . Overloaded Fab Kills . | . . . Hacking | -11 -10 -10 --------- Run | Yrd Mat Min Machines Accessed 3 | . 3 . Terminals 3 | . 3 . Fabricators . | . . . Repair Stations . | . . . Recycling Units . | . . . Scanalyzers . | . . . Garrison Access . | . . . Total Hacks 7 | . 7 . Successful 2 | . 2 . Failed 5 | . 5 . Catastrophic . | . . . Database Lockouts . | . . . Manual . | . . . Terminals 7 | . 7 . Fabricators . | . . . Repair Stations . | . . . Recycling Units . | . . . Scanalyzers . | . . . Garrison Access . | . . . Terminal Hacks 2 | . 2 . Repair Station Index 1 | . 1 . Recall Investigation 1 | . 1 . Fabricator Hacks . | . . . Repair Station Hacks . | . . . Recycling Unit Hacks . | . . . Scanalyzer . | . . . Garrison Access Hacks . | . . . Unauthorized Hacks . | . . . Terminals . | . . . Fabricators . | . . . Repair Stations . | . . . Recycling Units . | . . . Scanalyzers . | . . . Garrison Access . | . . . Data Cores Recovered 1 | . 1 . Used . | . . . Hacking Detections 3 | . 3 . Full Trace Events . | . . . Feedback Events . | . . . Feedback Blocked . | . . . Robot Schematics Acquired . | . . . Robots Built . | . . . Authchips . | . . . Time . | . . . Total Robot Build Rating . | . . . Part Schematics Acquired . | . . . Parts Built . | . . . Authchips . | . . . Time . | . . . Total Part Build Rating . | . . . Parts Repaired . | . . . Time . | . . . Parts Recycled . | . . . Recycled Matter . | . . . Retrieved Matter . | . . . Retrieved Components . | . . . Parts Scanalyzed . | . . . Part Schematics Acquired . | . . . Parts Damaged . | . . . Bothacking | -11 -10 -10 ------------ Run | Yrd Mat Min Used RIF Installer . | . . . Robots Hacked . | . . . Non-combat . | . . . Combat . | . . . Robot Hacks Applied . | . . . Relay Couplers Released . | . . . Fabnet Peak Effective % . | . . . Robots Rewired . | . . . Allies Hacked . | . . . Hacks Repelled . | . . . Allies | -11 -10 -10 -------- Run | Yrd Mat Min Total Allies 3 | . . 3 Largest Group 3 | . . 3 Highest-Rated Group 40 | . . 40 Highest-Rated Ally 16 | . . 16 Total Orders . | . . . Ally Attacks 21 | . . 21 Total Damage 189 | . . 189 Kills 2 | . . 2 Allies Corrupted . | . . . Allies Melted . | . . . Intel | -11 -10 -10 ------- Run | Yrd Mat Min Robot Analysis Total . | . . . Derelict Logs Recovered 1 | . . 1 Drone Launches . | . . . Drone Recoveries . | . . . Exploration | -11 -10 -10 ------------- Run | Yrd Mat Min Turns Passed 809 | 4 443 362 Spaces Moved 482 | 3 257 222 Core . | . . . Treads . | . . . Legs 109 | 3 106 . Wheels 373 | . 151 222 Hover . | . . . Flight . | . . . Fastest Speed 90 | 120 90 135 Average Speed 124 | 120 112 138 Slowest Speed 140 | 120 135 140 Overloaded Moves . | . . . Propulsion Burnouts . | . . . Robots Hopped . | . . . Cave-ins Triggered . | . . . Exploration Rate (%) 32 | 2 49 47 Regions Visited 2 Branch Regions 1 Pre-discovered Areas 1 | . . 1 Known Exits Taken . | . . . Unknown Exits Taken 2 | 1 1 . Scrap Searched . | . . . Spaces Dug . | . . . Terrain Destroyed 2 | . 2 . Melee . | . . . Projectile . | . . . AOE 2 | . 2 . Terrain Rammed . | . . . Walls Destroyed . | . . . Machines Disabled . | . . . Actions | -11 -10 -10 --------- Run | Yrd Mat Min Total 588 | 4 333 251 Wait 18 | . 9 9 Move 480 | 2 256 222 Hop . | . . . Pick Up 7 | . 6 1 Fast Attach 1 | . 1 . Attach 6 | . 5 1 Detach . | . . . Swap 11 | . 8 3 Drop 10 | 2 6 2 Fire 55 | . 42 13 Melee . | . . . Ram . | . . . Kick . | . . . Crush . | . . . Escape Stasis . | . . . Rewire . | . . . Trap . | . . . Miscellaneous . | . . . Route ------- -11/Scrapyard -10/Materials -10/Mines History --------- Turn | Location | Event 1 | -11/Scrapyard | Discovered new exit (range 2) 5 | -11/Scrapyard | Entered Materials 311 | -10/Materials | Discovered new exit (range 12) 325 | -10/Materials | Build established: Mutant 448 | -10/Materials | Entered Mines 455 | -10/Mines | Received a Rocket Launcher from a helpful Derelict 487 | -10/Mines | Assisted by bots powering up and referring to "LRC-V3" 545 | -10/Mines | Core integrity fell below 50% 657 | -10/Mines | Learned location of Storage (-7) 767 | -10/Mines | Assembled infested the area 798 | -10/Mines | Core integrity fell below 20% 810 | -10/Mines | Destroyed by D-53 Grenadier with Mini Grenade Launcher Last Messages --------------- 00657_ Acquired derelict log, extracted data. World map updated: -7/Storage. 00663_ K-01 Serf collects debris. 00683_ R-06 Scavenger destroyed. 00689_ Acquired 10 matter. 00748_ K-01 Serf cleans the Core Extractor. 00767_ ALERT: Infestation in the mines, dispatching Demolisher response squad. 00789_ Overheating: System interference. 00789_ Spread Laser temporarily disabled. 00791_ Trooper 1a destroyed. 00793_ Trooper 1b destroyed. 00802_ Destroyed Asb. Hover Unit. 00802_ as-93068 destroyed. 00808_ C-30 ARC bursts open, deploying its payload. 00808_ D-53 Grenadier unfolds itself. 00809_ as-07325 destroyed. 00809_ as-73153 destroyed. 00809_ Lgt. Ion Engine destroyed. 00809_ as-26947 destroyed. Map ----- +----------------------------------------------------+ | | | ????????????????????????????????????????????????? | | ????????????????????????????????????????????????? | | ????????????????????????????????????????????????? | | ????????????????????????????????????????????????? | | ????????????????????????????????????????????????? | | ????????????????????????????????????????????????? | | ????????????????????????????????????????????????? | | ????????????????????????????????????????????????? | | ?????????????????????#??????????????????????????? | | ?????????????????????%??????????????????????????? | | ????????????????????? ??????????????????????????? | | ????????????????????? ??????????????????????????? | | ????????????????????? ??????????????????????????? | | ????????????????????? ??????????????????????????? | | ????????????????????? ?????###??????????????????? | | ????????????????????# #????# ??????????????????? | | ????????????????????# #????# #???#??????????????? | | ????????????????????# #????# #??????????????????? | | ???????????????##???# #????# #??#?????#?????????? | | ???????????????#???## #????# #??????????????????? | | ?????????????????### #??### ##?????????????????? | | ?????????????????? *a### ## ##?#??????????????? | | ???????????????????# =% # #????????????????? | | ?????????????????#?# % d #??#?????????????? | | ???????????????????# =a @d% #????????????????? | | ????????????#??#???# % ##???????????????? | | ???????????????????## ##??????????????? | | ????????????????????### # ##?????????????? | | ???????????###?#??????###### #########?????? | | ??????????## ####?????#??## #?????? | | ??????????# #######???## ###### #?????? | | ??????????# ?? #????## ##???????????? | | ???????????# #??# ########## #????????????? | | ????????????# #### ## ###??# #????????????? | | ?????????????# #### ##???#???????? | | ?????????????## #???????????? | | ?#????????????########### #???????????? | | ????????????????????????####### #???????????? | | ???????????#???#?????????????## """ ##??????????? | | ?????????#??#???############### """ ###??#?????? | | ??????????#?#????# =[! """ ##???????? | | ??????????????#??# *[%*= ? | | ??????#????#???#?# ############# ? | | ?????????#?#?????# #????????????# #### #?? | | ???????#?????????# ###?????????### #??????? | | ????#####????????# ##????????????## #??????? | | ???## ##?????### ##?#???????????# ##??????? | | ???# ##???#?# ##??#??????????###???????? | | ???# ##????# ##??????????????????????? | +----------------------------------------------------+ Best States ------------- Heat Dissipation 25 Energy Generation 10 Energy Capacity 125 Matter Stores 300 Matter Capacity 300 Sight Range 16 Terrain Scan Range 14 Terrain Scan Density 10 Evasion (%) 55 Item Schematics ----------------- None Robot Schematics ------------------ None Fabricated ------------ Nothing Alien Tech Used ----------------- None Achievements -------------- GoHome() Challenges ------------ None Game ------ Seed GrapheneFissionInverter Manual? 0 Play Time 00:09:59 Cumulative 25.2 hours Start 2024.09.20 @ 22:45:38 End 2024.09.20 @ 22:54:00 Sessions 1 Manual Loads 0 Difficulty Rogue Special Mode None Game No. 103 Rogue 99 Adventurer 4 Explorer 0 Win Type - Total 0 Types 0/0/0/0/0/0/0/0/0 Lore% 12 Gallery% 28 Achievement% 19 Wizard Run 0 Options --------- Layout 2 ASCII 0 Keyboard 0 Movement Mouse Keybinds 0 Fullscreen 1 Font 16/SmallcapsGlow Map View 55x47 Zoom Use 0% Tactical HUD 1 Map Filters NONE Filters NONE Steam 1 RUN: 0167013f-578e-458e-a8e3-260231df3d3b